bitfinex/quotes_ETHUSD_20240811
["timestamp","ask_amount","ask_price","bid_price","bid_amount"]
[1723401785801,2.4312,2640.3,2640.0,2.6515]
[1723401786375,2.4312,2640.3,2640.1,2.65139]
[1723401787298,2.4312,2640.3,2640.0,2.65145]
[1723401787572,2.4312,2640.3,2640.1,0.265145]
[1723401787778,2.4312,2640.3,2639.8,2.65164]
[1723401789031,5.08241,2640.3,2639.6,5.30367]
[1723401789177,5.08241,2640.3,2639.7,3.0]
[1723401790056,5.08241,2640.3,2639.7,5.65178]
[1723401790421,2.4312,2640.3,2639.8,2.65169]
[1723401790622,2.4312,2640.3,2639.9,2.65155]
[1723401791827,2.4312,2640.3,2640.1,2.65139]
[1723401792249,2.4312,2640.3,2639.9,2.65154]
[1723401792552,2.4312,2640.3,2639.9,3.57248186]
[1723401793851,2.4312,2640.3,2639.9,6.22404186]
[1723401794356,2.4312,2640.3,2639.9,6.22402186]
[1723401795817,2.4312,2640.3,2639.9,3.57248186]
[1723401796235,2.4312,2640.3,2639.7,6.4821]
[1723401796418,2.3106,2640.1,2639.6,2.65188]
[1723401797438,2.3106,2640.1,2639.5,2.65195]
[1723401797762,11.4995315,2640.6,2639.3,2.65215]
[1723401797763,2.3106,2639.8,2639.3,2.65215]
[1723401797965,2.3106,2639.8,2639.3,5.30431]
[1723401798132,2.3106,2639.8,2639.3,3.182581]
[1723401798326,2.3106,2639.8,2639.4,2.65209]
[1723401798544,2.3106,2639.8,2639.5,2.65201]
[1723401800339,2.3106,2639.8,2639.3,3.182581]
[1723401800538,2.3106,2639.8,2639.3,5.834741]
[1723401800765,2.3106,2639.8,2639.3,3.182581]
[1723401800935,2.3106,2639.8,2639.3,5.834731]
[1723401801138,2.3106,2639.8,2639.4,2.65211]
[1723401802898,2.3106,2640.2,2640.0,2.65151]
[1723401803195,12.28,2640.8,2639.5,2.4952]
[1723401803196,2.3106,2640.6,2640.2,2.65129]
[1723401803380,2.3106,2640.6,2639.9,2.65154]
[1723401803381,4.96151,2640.6,2639.9,2.65154]
[1723401803561,2.3106,2640.6,2640.0,2.65149]
[1723401803761,4.96153,2640.6,2640.0,2.65149]
[1723401803983,4.96153,2640.6,2640.1,2.6514]
[1723401803984,3.07183,2640.6,2640.1,2.6514]
[1723401804170,2.3106,2640.6,2640.2,2.65125]
[1723401804792,2.3106,2640.6,2640.1,2.65133]
[1723401805412,2.3106,2640.6,2640.2,2.65129]
[1723401805698,2.3106,2640.6,2640.1,2.65133]
[1723401806065,2.3106,2640.6,2640.2,2.65131]
[1723401806997,2.3106,2640.6,2640.2,0.530264]
[1723401807773,2.3106,2640.6,2640.2,3.181554]
[1723401808795,2.3106,2640.6,2640.2,0.530264]
[1723401808980,2.3106,2640.6,2640.1,2.65133]
[1723401810022,2.3106,2640.6,2639.9,2.65154]
[1723401810023,4.96151,2640.6,2639.9,2.65154]
[1723401810509,2.3147,2640.4,2639.7,2.65175]
[1723401810689,4.96592,2640.3,2639.7,2.65175]
[1723401810889,2.3147,2640.3,2639.7,5.568675]
[1723401811086,4.96593,2640.3,2639.7,2.916925]
[1723401812106,2.3483,2640.2,2639.7,2.916925]
[1723401812282,2.3483,2640.2,2639.7,2.65175]
[1723401812495,2.3483,2640.2,2639.7,5.30351]
[1723401812695,2.3483,2640.2,2639.7,5.3035]
[1723401813427,2.3483,2640.2,2639.7,2.65175]
[1723401813627,2.3483,2640.2,2639.8,2.65165]
[1723401813789,2.3483,2640.2,2639.8,3.18199]
[1723401816597,2.3483,2640.2,2639.9,2.6516]
[1723401816803,2.3483,2640.2,2639.9,5.30309]
[1723401817132,2.3483,2640.2,2639.9,2.65153]
[1723401827840,2.3465337,2640.2,2639.9,2.65153]
[1723401832951,2.3465337,2640.2,2639.9,5.30307]
[1723401833111,2.3465337,2640.2,2639.9,5.833377]
[1723401834218,2.3465337,2640.2,2639.9,3.181837]
[1723401834441,2.3465337,2640.2,2639.9,2.65153]
[1723401836727,2.3465337,2640.2,2639.9,5.30309]
[1723401837051,2.3465337,2640.2,2639.9,2.65153]
[1723401840216,2.3465337,2640.2,2639.5,2.65194]
[1723401840426,1.129,2640.4,2639.3,0.65528215]
[1723401840427,2.4504,2639.8,2639.3,5.30432]
[1723401840730,1.752107,2639.7,2639.3,5.3043]
[1723401841046,2.4504,2639.8,2639.4,2.65205]
[1723401841718,2.4504,2639.8,2639.5,2.652]
[1723401841922,2.4504,2639.8,2639.5,2.65195]
[1723401842651,2.4504,2640.0,2639.5,2.65195]
[1723401842881,2.4504,2640.0,2639.6,2.917105]
[1723401843338,2.4504,2640.0,2639.8,2.6517]
[1723401845742,2.4504,2640.0,2639.6,2.917035]
[1723401846052,2.4504,2640.0,2639.6,2.65184]
[1723401846053,3.5794,2640.0,2639.6,2.65184]
[1723401846249,4.467611,2640.0,2639.4,2.65203]
[1723401846467,4.467611,2640.0,2639.5,2.65198]
[1723401847931,4.467611,2640.0,2639.2,2.65227]
[1723401847932,1.129,2639.8,2639.2,2.65227]
[1723401848164,2.4786,2639.7,2639.2,2.65226]
[1723401848365,2.4786,2639.7,2639.2,5.30451]
[1723401848551,2.4786,2639.7,2639.3,2.65221]
[1723401848759,2.4786,2639.7,2639.2,5.30451]
[1723401849463,2.4786,2639.7,2639.2,2.65225]
[1723401851837,3.3847,2639.6,2638.8,2.65268]
[1723401852044,3.3847,2639.6,2638.8,2.65269]
[1723401852045,2.2557,2639.3,2638.8,2.65269]
[1723401852458,2.2557,2639.3,2638.8,2.65266]
[1723401852848,2.2557,2639.3,2638.9,2.65259]
[1723401855953,2.2557,2639.6,2638.9,3.026425]
[1723401856158,2.2557,2639.6,2639.2,2.65226]
[1723401856342,2.2557,2639.6,2639.4,2.65205]
[1723401856560,2.2557,2639.6,2639.3,2.65221]
[1723401858875,2.2557,2639.6,2639.4,2.65211]
[1723401859274,2.2557,2639.8,2639.4,2.65211]
[1723401859481,9.5257,2640.0,2639.6,2.65189]
[1723401860356,9.5257,2640.0,2639.4,5.30414]
[1723401860549,9.5257,2640.0,2639.4,2.65203]
[1723401861366,9.5257,2640.0,2639.4,0.65497337]
[1723401861561,9.5257,2640.0,2639.6,2.65184]
[1723401863544,2.2557,2640.0,2639.6,2.65184]
[1723401866198,2.2557,2640.0,2639.7,2.65176]
[1723401868470,2.2557,2640.0,2639.6,2.65184]
[1723401868830,2.2557,2640.0,2639.4,3.38280221]
[1723401868831,2.2557,2640.0,2639.5,2.652]
[1723401869169,2.2557,2640.0,2639.3,2.4959]
[1723401869170,2.3996,2639.6,2639.3,2.65216]
[1723401869492,2.3996,2639.6,2639.4,2.65204]
[1723401872080,2.4718,2639.8,2639.4,2.65204]
[1723401878117,2.4718,2639.8,2639.5,2.65193]
[1723401878326,6.25224,2640.1,2639.6,2.6519]
[1723401878518,6.25224,2640.1,2639.4,2.65203]
[1723401881197,2.65153,2640.0,2639.4,2.65203]
[1723401882512,2.65153,2640.0,2639.5,2.65199]
[1723401882719,2.65153,2640.0,2639.5,3.414534]
[1723401882931,2.65153,2640.0,2639.5,2.65199]
[1723401883976,3.6008,2640.1,2639.8,2.6517]
[1723401885084,3.6008,2640.1,2639.7,2.65178]
[1723401887858,3.6008,2640.1,2639.6,2.65186]
[1723401890378,6.25221,2640.1,2639.5,5.3039]
[1723401890580,2.65152,2640.0,2639.5,2.65195]
[1723401891674,3.6008,2640.1,2639.5,6.066431]
[1723401891980,5.04983,2640.0,2639.5,2.65194]
[1723401892284,2.3983,2639.9,2639.5,2.65194]
[1723401893891,2.3983,2639.9,2639.3,2.65216]
[1723401893892,6.17892,2639.9,2639.3,2.65216]
[1723401898171,2.3983,2640.1,2639.4,2.4187]
[1723401898385,2.3983,2640.1,2639.7,2.65172]
[1723401898584,2.3983,2640.1,2639.8,2.6517]
[1723401898933,2.3983,2640.1,2639.7,2.65172]
[1723401899195,2.3983,2640.1,2639.7,5.30347]
[1723401899492,2.3983,2640.1,2639.8,3.18962297]
[1723401900279,2.3983,2640.1,2639.9,2.6516]
[1723401900620,7.27,2640.3,2640.2,2.65131]
[1723401900899,7.27,2640.3,2639.8,8.25992297]
[1723401901197,7.27,2640.3,2639.9,0.4085623]
[1723401901198,2.3983,2640.2,2639.9,0.4085623]
[1723401902722,2.3983,2640.2,2639.9,3.0601723]
[1723401903826,7.27,2640.3,2640.0,2.65148]
[1723401904012,7.27,2640.3,2640.1,0.30600423]
[1723401905238,15.8073,2640.6,2640.1,0.30600423]
[1723401905239,6.17824,2640.6,2640.1,0.30600423]
[1723401905439,2.65103,2640.5,2640.1,0.30600423]
[1723401908199,3.5273,2640.6,2640.1,0.30600423]
[1723401908491,7.27,2640.7,2640.3,2.65113]
[1723401908692,7.27,2640.7,2640.4,0.530235]
[1723401908948,2.3381,2640.8,2640.4,3.181335]
[1723401909292,4.98882,2640.8,2640.4,0.530235]
[1723401909515,4.98882,2640.8,2640.3,2.4127]
[1723401910337,4.98882,2640.8,2640.3,5.0639]
[1723401912935,2.3381,2640.8,2640.3,5.0639]
[1723401913161,2.4496,2641.1,2640.3,2.4884462]
[1723401913329,2.4496,2641.4,2641.0,2.65049]
[1723401914010,2.4496,2641.4,2640.9,2.65053]
[1723401914199,5.10009,2641.1,2640.5,5.00536]
[1723401914403,5.610099,2641.1,2640.5,5.00535]
[1723401914840,5.610089,2641.1,2640.5,5.00535]
[1723401915138,3.77952,2641.0,2640.5,2.65095]
[1723401915302,1.129,2641.0,2640.5,5.3019]
[1723401915511,5.10008,2641.1,2640.6,2.65089]
[1723401916042,2.4496,2641.1,2640.6,2.65089]
[1723401916248,2.4496,2641.1,2640.7,2.65078]
[1723401917041,1.129,2641.2,2640.7,2.65078]
[1723401917202,2.016911,2641.2,2640.7,2.65078]
[1723401919447,4.667221,2641.2,2640.7,2.65078]
[1723401921946,4.667221,2641.2,2640.5,5.00535]
[1723401921947,2.4496,2641.5,2640.9,5.00498]
[1723401922145,0.1279616,2641.6,2641.0,0.0757211]
[1723401923016,0.1279616,2641.6,2641.2,2.65025]
[1723401923610,0.1279616,2641.6,2641.3,2.65019]
[1723401924034,0.1279616,2641.6,2641.2,0.27260311]
[1723401924501,0.1279616,2641.6,2641.2,2.92285311]
[1723401925308,0.1279616,2641.6,2641.4,2.65008]
[1723401925831,0.1279616,2641.6,2641.3,5.00454]
[1723401926037,0.1279616,2641.6,2641.3,3.14715131]
[1723401928114,2.7778816,2641.6,2641.2,0.27260311]
[1723401928314,1.129,2641.5,2641.0,2.2552]
[1723401928623,2.65028,2641.3,2640.8,2.2552]
[1723401928829,7.79054,2641.4,2640.9,0.490592]
[1723401929055,5.14036,2641.4,2640.9,0.490592]
[1723401929249,5.14036,2641.4,2640.9,3.490592]
[1723401929434,7.79052,2641.4,2640.9,3.490592]
[1723401929639,5.14036,2641.4,2640.9,6.141192]
[1723401929818,5.14036,2641.4,2641.0,0.8396392]
[1723401930243,2.4902,2641.4,2641.0,0.8396392]
[1723401930526,3.77901,2641.5,2641.0,0.8396392]
[1723401931668,1.129,2641.5,2641.0,3.4901292]
[1723401931819,1.129,2641.5,2641.1,0.96312612]
[1723401933410,1.129,2641.5,2640.8,2.2552]
[1723401933411,3.77907,2641.5,2640.8,2.2552]
[1723401934956,3.77907,2641.5,2640.9,2.65059]
[1723401935527,2.65016,2641.4,2640.9,2.65059]
[1723401936344,2.65016,2641.4,2640.8,2.2552]
[1723401936517,2.65016,2641.4,2640.9,0.57558154]
[1723401938067,2.65016,2641.4,2640.8,4.90588]
[1723401938068,2.65021,2641.3,2640.8,4.90588]
[1723401938564,2.65021,2641.3,2640.8,2.2552]
[1723401940644,3.77906,2641.5,2640.9,2.65057]
[1723401943678,2.65011,2641.4,2640.8,7.55647]
[1723401943842,2.65011,2641.4,2640.8,8.425017]
[1723401944047,2.65021,2641.3,2640.8,5.774367]
[1723401944362,2.65021,2641.3,2640.8,4.90582]
[1723401944563,1.129,2641.1,2640.4,3.0]
[1723401944792,0.1279616,2641.6,2640.1,2.2588]
[1723401944793,3.77989,2640.7,2640.1,2.2588]
[1723401944994,2.65097,2640.6,2640.1,2.2588]
[1723401945276,1.129,2640.7,2640.2,2.65129]
[1723401945473,2.3099,2640.8,2640.2,2.65129]
[1723401945634,2.65092,2640.6,2640.2,0.756153]
[1723401945832,2.65101,2640.5,2640.2,0.756153]
[1723401946036,2.65101,2640.5,2640.0,2.65144]
[1723401946651,1.129,2640.5,2639.9,2.4283]
[1723401946854,7.27,2640.9,2639.4,5.08035]
[1723401946855,2.65152,2640.0,2639.4,5.08035]
[1723401947061,5.30295,2640.1,2639.4,7.73238]
[1723401947371,2.65152,2640.0,2639.4,5.08033]
[1723401947550,2.65152,2640.0,2639.5,0.620933]
[1723401948073,2.65139,2640.2,2639.5,0.620933]
[1723401948392,2.65141,2640.1,2639.5,0.620933]
[1723401949493,2.65141,2640.1,2639.5,3.272933]
[1723401949691,2.65141,2640.1,2639.4,5.08033]
[1723401949692,2.65141,2640.1,2639.6,3.4872163]
[1723401949858,2.65126,2640.3,2639.7,2.65181]
[1723401950176,2.65126,2640.3,2639.1,5.65238]
[1723401950177,2.65169,2639.9,2639.3,2.65214]
[1723401950741,5.30338,2639.9,2639.3,2.65214]
[1723401950942,5.30338,2639.9,2639.4,0.265214]
[1723401951147,2.65208,2639.5,2639.1,2.4283]
[1723401951379,2.4261,2639.8,2638.9,2.65253]
[1723401951380,2.65197,2639.6,2638.9,2.65253]
[1723401951546,2.65197,2639.6,2638.9,5.30507]
[1723401951745,2.65197,2639.6,2639.0,2.65249]
[1723401951949,2.65197,2639.6,2639.1,0.530502]
[1723401952147,5.30397,2639.6,2639.1,0.530502]
[1723401952769,2.65208,2639.5,2639.1,0.530502]
[1723401953376,2.65197,2639.6,2639.1,0.530502]
[1723401953549,5.07785,2639.8,2639.1,0.530502]
[1723401953751,5.07785,2639.8,2639.2,0.3530502]
[1723401953953,5.07785,2639.8,2638.9,3.0]
[1723401954261,5.07785,2639.8,2638.8,2.3691]
[1723401954841,5.07785,2639.8,2639.2,2.65224]
[1723401958268,5.07785,2639.8,2638.9,2.65256]
[1723401958459,2.65189,2639.7,2639.0,5.65246]
[1723401958661,2.65191,2639.6,2639.1,0.830502]
[1723401960065,5.30389,2639.6,2639.1,0.830502]
[1723401960274,2.65191,2639.6,2639.1,0.830502]
[1723401961185,2.65203,2639.5,2639.1,0.830502]
[1723401961387,2.65214,2639.4,2639.0,3.0]
[1723401961682,2.65222,2639.3,2638.7,5.30553]
[1723401961981,2.4261,2639.4,2638.6,2.3691]
[1723401962186,2.4261,2639.4,2638.3,0.59354357]
[1723401962187,5.0789,2638.8,2638.3,0.59354357]
[1723401962377,2.65288,2638.7,2638.1,2.65334]
[1723401962753,5.0789,2638.8,2638.2,2.65329]
[1723401962955,2.65197,2639.6,2638.3,2.44490368]
[1723401963159,2.65197,2639.6,2638.8,2.65271]
[1723401963160,2.65198,2639.6,2638.8,2.65271]
[1723401963368,2.65198,2639.6,2638.8,5.02181]
[1723401963369,2.65217,2639.4,2638.8,5.02181]
[1723401963561,2.65237,2639.2,2638.5,2.3691]
[1723401963755,2.65237,2639.2,2638.6,0.802214]
[1723401963997,2.65217,2639.4,2638.7,2.65279]
[1723401964188,5.07807,2639.6,2638.9,2.65253]
[1723401964483,5.07807,2639.6,2639.0,0.265253]
[1723401964662,2.65208,2639.5,2638.9,2.65253]
[1723401965281,5.30432,2639.4,2638.7,5.3055]
[1723401965464,2.65214,2639.4,2638.7,5.30549]
[1723401965665,2.65224,2639.3,2638.8,0.6107704]
[1723401966087,2.65208,2639.5,2638.9,2.6526]
[1723401966293,2.65208,2639.5,2638.9,5.30516]
[1723401966453,2.65208,2639.5,2639.0,0.59159304]
[1723401966653,2.65208,2639.5,2638.9,5.3051]
[1723401966856,2.65208,2639.5,2638.9,2.65254]
[1723401967089,2.65208,2639.5,2638.7,2.65277]
[1723401967410,2.65208,2639.5,2638.9,2.65261]
[1723401967586,5.30418,2639.5,2638.9,2.65261]
[1723401967793,3.425108,2639.5,2638.8,2.65272]
[1723401967974,2.65227,2639.3,2638.7,2.6528]
[1723401968154,2.65227,2639.3,2638.7,3.3482114]
[1723401968690,2.65227,2639.3,2638.7,0.6954114]
[1723401968898,3.78227,2639.3,2638.7,0.6954114]
[1723401969394,2.65242,2639.1,2638.7,0.6954114]
[1723401971479,2.65242,2639.1,2638.6,3.802214]
[1723401971684,2.65252,2639.0,2638.6,3.802214]
[1723401971887,5.05472,2639.1,2638.6,0.802214]
[1723401972499,2.65235,2639.2,2638.6,6.107984]
[1723401972805,2.65243,2639.1,2638.6,3.455074]
[1723401973102,6.43458,2639.3,2638.6,6.107914]
[1723401973406,2.65228,2639.3,2638.8,2.65271]
[1723401975706,2.4023,2639.4,2638.8,5.30536]
[1723401975905,5.05441,2639.4,2638.8,2.65265]
[1723401976204,5.05441,2639.4,2638.8,5.30531]
[1723401976607,5.05441,2639.4,2638.8,2.65265]
[1723401976809,5.05441,2639.4,2638.9,0.79406414]
[1723401977210,2.4023,2639.4,2638.9,0.79406414]
[1723401977374,2.65213,2639.4,2638.9,0.79406414]
[1723401979178,3.78207,2639.5,2638.9,3.44664414]
[1723401979378,6.43414,2639.5,2638.9,3.44664414]
[1723401979579,6.43416,2639.5,2638.9,3.44664414]
[1723401980417,2.65212,2639.4,2638.9,0.79406414]
[1723401981980,2.65222,2639.3,2638.9,0.79406414]
[1723401983184,2.65222,2639.3,2638.8,2.65264]
[1723401983403,3.78222,2639.3,2638.8,2.65264]
[1723401983910,6.4345,2639.3,2638.8,2.65264]
[1723401984211,6.18452,2639.3,2638.7,5.2879914]
[1723401984517,2.65262,2638.9,2638.7,2.0]
[1723401984715,2.65272,2638.8,2638.7,2.0]
[1723401985012,3.78262,2638.9,2638.7,2.0]
[1723401985216,6.4353,2638.9,2638.7,2.0]
[1723401985427,2.65272,2638.8,2638.7,2.0]
[1723401986228,8.023512,2638.8,2638.7,2.0]
[1723401987225,10.676232,2638.8,2638.7,2.0]
[1723401989627,11.226232,2638.8,2638.7,2.0]
[1723401991040,8.573512,2638.8,2638.7,2.0]
[1723401998530,2.2614,2639.2,2638.7,2.0]
[1723401998734,2.65238,2639.2,2638.7,2.0]
[1723401998937,2.65249,2639.1,2638.8,2.3743]
[1723401999135,2.65254,2639.0,2638.7,2.0]
[1723401999446,2.65239,2639.2,2638.7,2.43743]
[1723402000152,5.30479,2639.2,2638.7,2.43743]
[1723402000447,2.65239,2639.2,2638.7,2.43743]
[1723402000645,7.27,2639.3,2638.7,5.09015]
[1723402000836,7.27,2639.3,2638.8,5.02701]
[1723402001010,7.27,2639.3,2638.9,0.746444]
[1723402001533,7.27,2639.3,2638.9,3.399004]
[1723402002143,7.27,2639.3,2638.9,3.399054]
[1723402002649,7.27,2639.3,2639.0,5.30495]
[1723402003014,7.27,2639.3,2639.0,2.65244]
[1723402003219,2.65203,2639.5,2639.0,3.4950244]
[1723402003746,2.65203,2639.5,2639.0,0.8425844]
[1723402004112,2.65203,2639.5,2639.0,3.4950944]
[1723402004309,7.27,2639.7,2639.0,3.4950344]
[1723402004536,2.65192,2639.6,2639.1,3.07654784]
[1723402005141,7.27,2639.7,2639.4,2.65211]
[1723402005452,7.27,2639.7,2639.4,2.65205]
[1723402005823,7.27,2639.7,2639.6,2.3743]
[1723402006025,2.65157,2640.0,2639.6,2.3743]
[1723402006227,2.65184,2639.7,2639.3,2.2512]
[1723402007749,2.65182,2639.7,2639.3,2.2512]
[1723402008655,2.65191,2639.6,2639.3,2.2512]
[1723402008827,2.65191,2639.6,2639.1,0.42414784]
[1723402009153,2.65228,2639.3,2639.0,2.2512]
[1723402009357,5.30457,2639.3,2638.8,2.2512]
[1723402009530,2.65232,2639.2,2638.8,2.2512]
[1723402009855,2.65232,2639.2,2638.8,3.506879]
[1723402010521,2.65244,2639.1,2638.8,3.506879]
[1723402010928,2.65228,2639.3,2638.8,3.506879]
[1723402011531,2.65232,2639.2,2638.8,3.506879]
[1723402011727,2.65228,2639.3,2638.8,2.2512]
[1723402011955,2.6524,2639.2,2638.8,2.2512]
[1723402012349,2.65253,2639.0,2638.8,2.2512]
[1723402012531,2.65253,2639.0,2638.7,2.0]
[1723402012851,2.65239,2639.2,2638.7,2.0]
[1723402013217,5.30477,2639.2,2638.7,2.0]
[1723402013857,2.65238,2639.2,2638.8,2.4889]
[1723402014152,2.65217,2639.4,2638.8,5.1416]
[1723402014356,2.65227,2639.3,2638.8,2.4889]
[1723402014533,2.65233,2639.2,2638.8,2.4889]
[1723402014860,5.30437,2639.4,2638.8,2.4889]
[1723402015063,2.65222,2639.3,2638.8,2.4889]
[1723402015674,2.65217,2639.4,2638.8,6.192415]
[1723402015834,2.65196,2639.6,2639.0,2.65245]
[1723402016031,2.65196,2639.6,2639.0,2.65243]
[1723402016457,2.65196,2639.6,2639.0,5.30489]
[1723402016728,2.65196,2639.6,2639.0,2.65243]
[1723402017949,2.65196,2639.6,2639.0,5.30488]
[1723402018565,5.30395,2639.6,2639.0,2.65243]
[1723402018874,2.65219,2639.4,2638.8,6.192405]
[1723402019034,5.30438,2639.4,2638.8,5.14153]
[1723402019230,2.65219,2639.4,2638.8,5.14153]
[1723402019473,2.65219,2639.4,2638.9,2.6526]
[1723402019640,2.65219,2639.4,2638.8,5.14153]
[1723402019977,2.65219,2639.4,2638.8,7.79419]
[1723402020532,2.65219,2639.4,2638.9,2.65257]
[1723402021071,5.834355,2639.6,2638.9,2.65257]
[1723402021270,2.65204,2639.5,2638.9,2.65257]
[1723402021965,2.65212,2639.4,2638.8,5.14153]
[1723402022182,4.9309,2639.7,2638.8,2.4889]
[1723402022382,2.65242,2639.1,2638.8,2.4889]
[1723402022679,2.65233,2639.2,2638.8,2.4889]
[1723402023548,2.6522,2639.4,2638.8,2.4889]
[1723402023886,2.6522,2639.4,2638.8,5.14155]
[1723402025352,2.6522,2639.4,2638.8,6.120991]
[1723402027045,2.6522,2639.4,2638.9,2.6526]
[1723402027743,10.68651,2639.6,2639.0,2.65245]
[1723402027955,7.27,2639.6,2639.1,2.65241]
[1723402028162,7.27,2639.6,2639.3,2.6522]
[1723402028693,7.27,2640.1,2639.6,2.65183]
[1723402028855,9.92146,2640.1,2639.5,2.65194]
[1723402029194,7.27,2640.1,2639.7,5.09893]
[1723402029342,2.65104,2640.5,2639.9,2.65151]
[1723402029767,2.65104,2640.5,2639.8,0.5608844]
[1723402029982,2.65147,2640.1,2639.7,2.4472]
[1723402030141,2.65163,2639.9,2639.4,2.4472]
[1723402030562,2.65163,2639.9,2639.4,5.09931]
[1723402030760,2.65163,2639.9,2639.4,5.874456]
[1723402033459,5.30291,2640.1,2639.5,2.65201]
[1723402033783,2.65152,2640.0,2639.4,5.874396]
[1723402035054,2.65152,2640.0,2639.4,5.874386]
[1723402035369,2.65147,2640.1,2639.4,5.874436]
[1723402035584,2.65147,2640.1,2639.5,3.2393936]
[1723402037699,5.30295,2640.1,2639.5,3.2393936]
[1723402038793,2.65152,2640.0,2639.4,2.4472]
[1723402038957,2.65177,2639.8,2639.4,2.4472]
[1723402040591,2.65198,2639.6,2639.1,2.3134]
[1723402040771,2.65198,2639.6,2639.1,5.3134]
[1723402040965,2.65198,2639.6,2639.1,9.327621]
[1723402041369,2.65198,2639.6,2639.1,6.675231]
[1723402042687,2.65198,2639.6,2639.1,9.327641]
[1723402043011,5.07437,2640.0,2639.2,2.6523]
[1723402043176,2.65162,2639.9,2639.4,2.6521]
[1723402043510,2.65162,2639.9,2639.3,0.9327531]
[1723402043693,2.65173,2639.8,2639.3,0.9327531]
[1723402044005,2.65173,2639.8,2639.2,2.65222]
[1723402044310,2.65173,2639.8,2639.2,5.30447]
[1723402046633,2.65226,2639.3,2638.9,2.4277]
[1723402046782,2.65226,2639.3,2638.7,2.0]
[1723402046783,2.65243,2639.1,2638.7,2.0]
[1723402047884,5.00776,2639.3,2638.7,2.0]
[1723402048077,2.65234,2639.2,2638.7,4.6528]
[1723402050105,2.65234,2639.2,2638.7,2.0]
[1723402050444,2.65242,2639.1,2638.7,2.0]
[1723402052209,5.00776,2639.3,2638.7,5.626162]
[1723402053126,2.65232,2639.2,2638.7,5.626162]
[1723402054248,2.65232,2639.2,2638.7,2.973352]
[1723402054409,2.65243,2639.1,2638.7,2.973352]
[1723402055138,2.65252,2639.0,2638.7,2.0]
[1723402055542,2.65267,2638.9,2638.7,2.0]
[1723402055749,5.02062,2638.8,2638.7,2.0]
[1723402056064,5.522682,2638.8,2638.7,2.0]
[1723402056418,3.154782,2638.8,2638.7,2.0]
[1723402058040,5.807502,2638.8,2638.7,2.0]
[1723402059684,8.175402,2638.8,2638.7,2.0]
[1723402062215,3.154782,2638.8,2638.7,2.0]
[1723402062511,2.65272,2638.8,2638.7,2.0]
[1723402064519,7.67334,2638.8,2638.7,2.0]
[1723402064721,13.87606,2638.8,2638.7,2.0]
[1723402070412,16.52878,2638.8,2638.7,2.0]
[1723402070611,15.800438,2638.8,2638.7,2.0]
[1723402071197,18.453158,2638.8,2638.7,2.0]
[1723402072128,15.800438,2638.8,2638.7,2.0]
[1723402074183,18.453158,2638.8,2638.7,2.0]
[1723402074513,15.800438,2638.8,2638.7,2.0]
[1723402079816,18.453158,2638.8,2638.7,0.10513]
[1723402080115,2.65372,2637.8,2637.7,2.264]
[1723402081222,2.65406,2637.5,2637.1,2.264]
[1723402081524,9.6108,2638.0,2637.1,2.264]
[1723402081726,2.65398,2637.6,2637.1,2.4904]
[1723402082394,2.65389,2637.7,2637.3,2.264]
[1723402082623,2.65368,2637.9,2637.4,2.264]
[1723402083221,2.65383,2637.7,2637.4,2.264]
[1723402083425,7.27,2638.0,2637.5,2.65393]
[1723402083628,7.27,2638.0,2637.6,2.264]
[1723402083922,9.92358,2638.0,2637.6,2.264]
[1723402084124,2.65382,2637.7,2637.6,2.264]
[1723402084482,2.65381,2637.8,2637.6,2.264]
[1723402085217,7.27,2638.0,2637.6,2.4904]
[1723402085421,9.92352,2638.0,2637.6,2.4904]
[1723402085621,12.57713,2638.0,2637.6,2.4904]
[1723402085788,9.92352,2638.0,2637.6,2.4904]
[1723402086188,2.65368,2637.9,2637.6,2.4904]
[1723402086500,2.65374,2637.8,2637.6,2.264]
[1723402087586,2.65352,2638.0,2637.6,2.264]
[1723402087887,2.65364,2637.9,2637.6,2.264]
[1723402088196,2.65418,2637.4,2637.1,2.3365]
[1723402088412,2.65423,2637.3,2637.1,2.3365]
[1723402088791,2.65433,2637.2,2637.1,2.3365]
[1723402089591,2.65418,2637.4,2637.1,2.3365]
[1723402090203,2.65424,2637.3,2637.1,2.3365]
[1723402091119,2.65433,2637.2,2636.7,2.4987]
[1723402091303,2.65433,2637.2,2636.7,3.014058]
[1723402091505,2.65449,2637.1,2636.7,3.014058]
[1723402092902,2.65417,2637.4,2636.7,3.014058]
[1723402093227,2.65392,2637.6,2637.2,2.4987]
[1723402093427,2.65413,2637.4,2637.2,2.4987]
[1723402094541,2.65423,2637.3,2637.0,2.4987]
[1723402095589,5.30876,2637.2,2636.7,2.4987]
[1723402095824,2.65436,2637.2,2636.7,5.684494]
[1723402096529,12.17915,2637.7,2636.7,5.684494]
[1723402096530,2.65397,2637.6,2636.8,2.4987]
[1723402096737,2.65397,2637.6,2637.0,2.4987]
[1723402097025,2.65409,2637.5,2637.0,2.4987]
[1723402097231,2.65418,2637.4,2637.0,2.4987]
[1723402097698,2.65401,2637.6,2637.0,5.15321]
[1723402098098,2.65401,2637.6,2637.0,5.933988]
[1723402098299,2.65401,2637.6,2637.0,6.009823]
[1723402099002,2.65388,2637.7,2637.1,2.6544]
[1723402099391,2.65388,2637.7,2637.1,5.3088]
[1723402099592,2.65388,2637.7,2637.2,2.4987]
[1723402099994,2.65397,2637.6,2637.2,2.4987]
[1723402100429,2.65388,2637.7,2637.2,2.4987]